bitfinex-derivatives/quotes_BTCF0:USTF0_20250406
["timestamp","ask_amount","ask_price","bid_price","bid_amount"]
[1743902348507,3e-08,83600.0,83599.0,0.38103946]
[1743902349011,3e-08,83600.0,83599.0,0.44663946]
[1743902349907,3e-08,83600.0,83599.0,0.44674645]
[1743902351723,3e-08,83600.0,83599.0,0.44685259]
[1743902352613,3e-08,83600.0,83599.0,0.86425259]
[1743902355711,3e-08,83600.0,83599.0,0.83095259]
[1743902358323,3e-08,83600.0,83599.0,1.19175259]
[1743902359911,3e-08,83600.0,83599.0,1.47649851]
[1743902361123,3e-08,83600.0,83599.0,1.4763667]
[1743902362127,3e-08,83600.0,83599.0,1.1155667]
[1743902362322,3e-08,83600.0,83599.0,1.4763667]
[1743902362824,3e-08,83600.0,83599.0,1.47638165]
[1743902363330,3e-08,83600.0,83599.0,1.19163573]
[1743902364331,3e-08,83600.0,83599.0,1.19158836]
[1743902364531,3e-08,83600.0,83599.0,1.22458836]
[1743902364715,3e-08,83600.0,83599.0,1.22458866]
[1743902365540,3e-08,83600.0,83599.0,0.86378866]
[1743902365734,3e-08,83600.0,83599.0,1.22458866]
[1743902366317,3e-08,83600.0,83599.0,1.15928866]
[1743902366922,3e-08,83600.0,83599.0,1.48372408]
[1743902368331,3e-08,83600.0,83599.0,1.48377628]
[1743902371024,3e-08,83600.0,83599.0,1.20377628]
[1743902371531,0.20000003,83600.0,83599.0,1.20377628]
[1743902372031,0.20000003,83600.0,83599.0,1.20383276]
[1743902375123,0.26130003,83600.0,83599.0,0.84303276]
[1743902375522,0.26198003,83600.0,83599.0,0.84303276]
[1743902375722,0.26198003,83600.0,83599.0,0.84286141]
[1743902377422,0.26198003,83600.0,83599.0,0.84279496]
[1743902378823,0.31302003,83600.0,83599.0,0.84279496]
[1743902379023,0.31302003,83600.0,83599.0,0.51835954]
[1743902381837,0.75758383,83600.0,83599.0,0.10095954]
[1743902386938,0.75758383,83600.0,83599.0,0.0843648]
[1743902387835,0.75758383,83600.0,83599.0,0.0006]
[1743902388136,0.1256587,83593.0,83592.0,0.0837715]
[1743902388437,0.4872187,83593.0,83592.0,0.0843715]
[1743902388626,0.5825187,83593.0,83592.0,0.0843715]
[1743902388828,0.5825187,83593.0,83592.0,0.10091873]
[1743902389437,0.7825187,83593.0,83592.0,0.10091873]
[1743902389740,0.7825187,83593.0,83592.0,0.10031873]
[1743902390332,0.7825187,83593.0,83592.0,0.10091539]
[1743902390539,0.8335587,83593.0,83592.0,0.10091539]
[1743902390925,0.7825187,83593.0,83592.0,0.10091539]
[1743902391133,0.8335587,83593.0,83592.0,0.10091539]
[1743902393542,0.8515187,83593.0,83592.0,0.10091539]
[1743902395943,0.8515187,83593.0,83592.0,0.1008775]
[1743902396843,0.8515187,83593.0,83592.0,0.1002775]
[1743902397843,0.8515187,83593.0,83592.0,0.016506]
[1743902398040,0.72586,83593.0,83587.0,0.0001795]
[1743902398347,0.1256633,83590.0,83589.0,0.0837744]
[1743902398635,0.1264233,83590.0,83589.0,0.0006]
[1743902399449,0.0837759,83588.0,83587.0,0.0001795]
[1743902399746,0.4445759,83588.0,83587.0,0.0839564]
[1743902400140,0.5100359,83588.0,83587.0,0.0845564]
[1743902401451,0.5100359,83588.0,83587.0,0.0007795]
[1743902402039,0.5100359,83588.0,83587.0,0.0839564]
[1743902402338,0.7100359,83588.0,83587.0,0.0846364]
[1743902402646,0.3492359,83588.0,83587.0,0.0846364]
[1743902402845,1.0708359,83588.0,83587.0,0.0846364]
[1743902403542,0.0837799,83584.0,83581.0,0.0418913]
[1743902403742,0.08473991,83584.0,83581.0,0.0418913]
[1743902403943,0.08473991,83584.0,83583.0,0.29810748]
[1743902404143,0.08473991,83584.0,83583.0,0.29870748]
[1743902404346,0.11733991,83584.0,83583.0,0.29870748]
[1743902404542,0.11733991,83584.0,83583.0,0.36380748]
[1743902404748,0.00096001,83584.0,83583.0,0.36380748]
[1743902404949,0.25212001,83584.0,83583.0,0.1494809]
[1743902405152,0.25212001,83584.0,83583.0,0.1488809]
[1743902405351,0.2131516,83584.0,83583.0,0.1488809]
[1743902405650,0.2131516,83584.0,83583.0,0.3788809]
[1743902405851,0.2643116,83584.0,83583.0,0.1488809]
[1743902406352,0.2643516,83584.0,83583.0,0.1488809]
[1743902406944,0.25216001,83584.0,83583.0,0.1488809]
[1743902408447,0.25212001,83584.0,83583.0,0.1488809]
[1743902409552,0.25212001,83584.0,83583.0,0.1790809]
[1743902410541,0.25116,83584.0,83583.0,0.1790809]
[1743902410945,0.2,83584.0,83583.0,0.4190809]
[1743902411241,0.2,83584.0,83583.0,0.43562889]
[1743902411757,8e-05,83586.0,83585.0,0.0837789]
[1743902412055,0.05128,83590.0,83589.0,0.0837748]
[1743902412255,0.05128,83590.0,83589.0,0.36032279]
[1743902412857,0.25128,83590.0,83589.0,0.36032279]
[1743902413654,0.25224001,83590.0,83589.0,0.36032279]
[1743902421555,0.20096001,83590.0,83589.0,0.36032279]
[1743902421957,0.20096001,83590.0,83589.0,0.36041933]
[1743902426362,0.20096001,83590.0,83589.0,0.42441933]
[1743902426951,0.2,83590.0,83589.0,0.42441933]
[1743902428854,0.2,83590.0,83589.0,0.42446189]
[1743902429057,0.20104001,83590.0,83589.0,0.42446189]
[1743902429856,0.2,83590.0,83589.0,0.42446189]
[1743902430056,0.2,83590.0,83589.0,0.42510189]
[1743902433565,0.2331,83590.0,83589.0,0.42510189]
[1743902434473,0.2331,83590.0,83589.0,0.42505488]
[1743902437187,0.2971,83590.0,83589.0,0.42505488]
[1743902438090,0.2971,83590.0,83589.0,0.42507439]
[1743902441990,0.2971,83590.0,83589.0,0.62377439]
[1743902442189,0.2971,83590.0,83589.0,0.42507439]
[1743902443793,0.2971,83590.0,83589.0,0.73820503]
[1743902445396,0.2971,83590.0,83589.0,0.73819557]
[1743902448998,0.2331,83590.0,83589.0,0.73819557]
[1743902449298,8e-05,83596.0,83590.0,0.0837738]
[1743902449493,3e-08,83600.0,83599.0,0.0837648]
[1743902449693,0.00096004,83600.0,83599.0,0.34137605]
[1743902449890,3e-08,83600.0,83599.0,0.75877605]
[1743902450286,3e-08,83600.0,83599.0,0.85617605]
[1743902452691,3e-08,83600.0,83599.0,0.85626051]
[1743902453093,3e-08,83600.0,83599.0,0.61626051]
[1743902453397,3e-08,83600.0,83599.0,0.84626051]
[1743902453804,0.03220003,83600.0,83599.0,0.84626051]
[1743902454603,0.03220003,83600.0,83599.0,0.84624702]
[1743902455293,3e-08,83600.0,83599.0,0.84624702]
[1743902455493,3e-08,83600.0,83599.0,0.61624702]
[1743902455793,3e-08,83600.0,83599.0,0.87624702]
[1743902457798,3e-08,83600.0,83599.0,0.61624702]
[1743902458194,3e-08,83600.0,83599.0,0.58384209]
[1743902458696,0.03250003,83600.0,83599.0,0.58384209]
[1743902460094,0.03250003,83600.0,83599.0,0.58384062]
[1743902461399,0.03250003,83600.0,83599.0,0.82384062]
[1743902462608,0.03250003,83600.0,83599.0,0.58384062]
[1743902463200,0.03250003,83600.0,83599.0,0.58389309]
[1743902464107,0.03346004,83600.0,83599.0,0.58389309]
[1743902464507,0.03346004,83600.0,83599.0,0.81389309]
[1743902464707,0.03250003,83600.0,83599.0,0.81389309]
[1743902464901,0.23250003,83600.0,83599.0,0.81389309]
[1743902465301,0.23250003,83600.0,83599.0,0.7971248]
[1743902465704,0.20000003,83600.0,83599.0,0.7971248]
[1743902466111,0.20000003,83600.0,83599.0,1.08309015]
[1743902466305,0.20000003,83600.0,83599.0,1.09963294]
[1743902466706,0.20000003,83600.0,83599.0,1.09963179]
[1743902467112,0.20000003,83600.0,83599.0,1.09963129]
[1743902468810,0.20000003,83600.0,83599.0,1.09964398]
[1743902469516,0.20000003,83600.0,83599.0,0.58367863]
[1743902470215,0.23030003,83600.0,83599.0,0.58367863]
[1743902470713,0.23030003,83600.0,83599.0,0.58364266]
[1743902471310,0.23030003,83600.0,83599.0,0.81364266]
[1743902471715,0.23030003,83600.0,83599.0,0.58364266]
[1743902472314,0.23030003,83600.0,83599.0,0.5671248]
[1743902475715,0.23030003,83600.0,83599.0,0.8271248]
[1743902476417,0.23030003,83600.0,83599.0,0.84369496]
[1743902478113,0.23130003,83600.0,83599.0,0.84369496]
[1743902478919,0.20100003,83600.0,83599.0,0.84369496]
[1743902479111,0.20000003,83600.0,83599.0,0.84369496]
[1743902479718,0.2,83600.0,83599.0,0.84369496]
[1743902480115,0.05104,83612.0,83603.0,0.0837608]
[1743902480424,8e-05,83609.0,83603.0,0.7045608]
[1743902481322,8e-05,83609.0,83603.0,1.1831608]
[1743902481523,8e-05,83609.0,83603.0,1.1920529]
[1743902481820,0.08154,83614.0,83603.0,1.1920529]
[1743902482116,0.10746366,83613.0,83603.0,1.1920529]
[1743902482322,8e-05,83606.0,83603.0,1.1920529]
[1743902482614,8e-05,83606.0,83603.0,1.20859684]
[1743902483422,8e-05,83606.0,83603.0,1.20859513]
[1743902485121,8e-05,83606.0,83603.0,1.20919513]
[1743902485324,8e-05,83606.0,83603.0,1.20922148]
[1743902486123,8e-05,83606.0,83603.0,1.52140676]
[1743902487020,8e-05,83606.0,83603.0,1.50483818]
[1743902487225,8e-05,83606.0,83603.0,1.52139959]
[1743902488418,8e-05,83606.0,83603.0,1.50483818]
[1743902494128,8e-05,83606.0,83603.0,1.14403818]
[1743902494329,8e-05,83606.0,83603.0,1.50483818]
[1743902495032,8e-05,83606.0,83603.0,1.14403818]
[1743902495231,8e-05,83606.0,83603.0,1.50483818]
[1743902495433,8e-05,83606.0,83603.0,1.14403818]
[1743902495735,8e-05,83606.0,83603.0,1.50483818]
[1743902498834,0.03168,83606.0,83603.0,1.50483818]
[1743902499435,0.0301,83605.0,83603.0,1.50483818]
[1743902499939,0.0317795,83604.0,83603.0,1.50483818]
[1743902500234,0.0618795,83604.0,83603.0,1.50483818]
[1743902502427,0.0618795,83604.0,83603.0,1.70353818]
[1743902502629,0.0317795,83604.0,83603.0,1.50483818]
[1743902502833,0.0317795,83604.0,83603.0,1.53753818]
[1743902505733,0.0317795,83604.0,83603.0,1.50483818]
[1743902506238,0.0640795,83604.0,83603.0,1.47373818]
[1743902509343,0.0640795,83604.0,83603.0,1.50473818]
[1743902515242,0.0317795,83604.0,83603.0,1.50473818]
[1743902515439,0.0001795,83604.0,83603.0,1.93471998]
[1743902518739,0.0001795,83604.0,83603.0,1.50473818]
[1743902522543,0.0001795,83604.0,83603.0,1.93471998]
[1743902523542,0.0001795,83604.0,83603.0,1.95128382]
[1743902527260,0.0001795,83604.0,83603.0,1.59049499]
[1743902527458,0.0001795,83604.0,83603.0,1.95129499]
[1743902528855,8e-05,83611.0,83610.0,0.0837538]
[1743902529057,0.00104001,83611.0,83610.0,0.36091691]
[1743902529259,8e-05,83611.0,83610.0,0.42501691]
[1743902529461,0.0314,83616.0,83615.0,0.0837488]
[1743902529664,0.03236001,83616.0,83615.0,0.34091191]
[1743902530161,0.23236001,83616.0,83615.0,0.34091191]
[1743902532667,0.23236001,83616.0,83615.0,0.34090582]
[1743902533361,0.20096001,83616.0,83615.0,0.34090582]
[1743902533667,0.04881527,83618.0,83617.0,0.0837468]
[1743902533873,0.7843945,83625.0,83623.0,0.0837408]
[1743902534069,2e-08,83624.0,83623.0,0.70109782]
[1743902534963,0.00076002,83624.0,83623.0,0.70177782]
[1743902537269,2e-08,83624.0,83623.0,1.11917782]
[1743902537461,0.7843945,83625.0,83624.0,0.0837398]
[1743902537659,0.7851945,83625.0,83624.0,0.38109682]
[1743902537859,0.7851945,83625.0,83624.0,0.41399682]
[1743902538669,0.7314242,83625.0,83624.0,0.41399682]
[1743902538870,0.5942735,83625.0,83624.0,0.41399682]
[1743902539172,0.4951438,83625.0,83624.0,0.41399682]
[1743902539379,0.4562172,83625.0,83624.0,0.41399682]
[1743902539872,0.3514,83625.0,83624.0,0.41399682]
[1743902540468,0.3514,83625.0,83624.0,0.83139682]
[1743902541068,0.3514,83625.0,83624.0,1.15708122]
[1743902541273,0.3506,83625.0,83624.0,1.15708122]
[1743902543177,0.3506,83625.0,83624.0,1.35578122]
[1743902545370,0.3506,83625.0,83624.0,1.38677139]
[1743902546373,0.3506,83625.0,83624.0,1.41767139]
[1743902546572,0.3506,83625.0,83624.0,1.45047139]
[1743902549073,0.3836,83625.0,83624.0,1.18797139]
[1743902549273,0.38432,83625.0,83624.0,0.87517139]
[1743902549873,0.38432,83625.0,83624.0,0.51849682]
[1743902550189,0.6690588,83625.0,83624.0,0.51849682]
[1743902550478,0.58532,83625.0,83624.0,0.10109682]
[1743902550681,0.6690588,83625.0,83624.0,0.05119682]
[1743902550879,0.9011588,83625.0,83624.0,0.00129682]
[1743902551183,0.9011588,83625.0,83624.0,0.08503662]
[1743902552070,0.81742,83625.0,83624.0,0.08503662]
[1743902552775,0.61642,83625.0,83624.0,0.08503662]
[1743902553175,0.66742,83625.0,83624.0,0.08503662]
[1743902553582,0.66742,83625.0,83624.0,0.08423662]
[1743902554984,1.02822,83625.0,83624.0,0.08423662]
[1743902557278,1.02822,83625.0,83624.0,0.08495662]
[1743902557979,1.02822,83625.0,83624.0,0.11585662]
[1743902559282,0.97722,83625.0,83624.0,0.11585662]
[1743902559491,0.66742,83625.0,83624.0,0.11585662]
[1743902560085,0.66742,83625.0,83624.0,0.1153598]
[1743902561683,0.7001588,83625.0,83624.0,0.1153598]
[1743902561883,0.7511588,83625.0,83624.0,0.1153598]
[1743902562784,0.7511588,83625.0,83624.0,0.13211385]
[1743902563581,0.7511588,83625.0,83624.0,0.1153598]
[1743902563788,0.7511588,83625.0,83624.0,0.13211504]
[1743902564989,0.7511588,83625.0,83624.0,0.34622996]
[1743902567293,0.7001588,83625.0,83624.0,0.34622996]
[1743902567495,0.55132,83625.0,83624.0,1.02012996]
[1743902567788,0.55132,83625.0,83624.0,1.05332996]
[1743902569303,0.55132,83625.0,83624.0,1.1247016]
[1743902572799,0.55132,83625.0,83624.0,0.83921504]
[1743902576604,0.55132,83625.0,83624.0,0.55921504]
[1743902576794,0.55132,83625.0,83624.0,0.19841504]
[1743902576995,0.58202,83625.0,83624.0,0.19841504]
[1743902577304,0.61132,83625.0,83624.0,0.16521504]
[1743902577997,0.58202,83625.0,83624.0,0.16521504]
[1743902578196,0.58202,83625.0,83624.0,0.19730152]
[1743902579590,0.58202,83625.0,83624.0,0.16510152]
[1743902579797,0.61132,83625.0,83624.0,0.16510152]
[1743902580201,0.61132,83625.0,83624.0,0.16512382]
[1743902581394,0.58202,83625.0,83624.0,0.16511389]
[1743902581592,0.55132,83625.0,83624.0,0.19561389]
[1743902582898,0.55132,83625.0,83624.0,0.42561389]
[1743902583694,0.5205723,83625.0,83624.0,0.42561389]
[1743902584398,0.5205723,83625.0,83624.0,0.84301389]
[1743902584696,0.3205723,83625.0,83624.0,0.84301389]
[1743902584913,0.3198523,83625.0,83624.0,0.8430048]
[1743902586704,0.3198523,83625.0,83624.0,1.16937334]
[1743902586898,0.3198523,83625.0,83624.0,1.16937597]
[1743902592511,0.3198523,83625.0,83624.0,1.15272834]
[1743902592817,0.3198523,83625.0,83624.0,1.16932699]
[1743902594015,0.3198523,83625.0,83624.0,1.36782699]
[1743902594505,0.3198523,83625.0,83624.0,1.3677975]
[1743902594907,0.3198523,83625.0,83624.0,1.35122834]
[1743902599822,0.3198523,83625.0,83624.0,1.70876129]
[1743902600513,0.1783095,83625.0,83624.0,1.70876129]
[1743902601013,0.1083209,83625.0,83624.0,1.70876129]
[1743902601214,0.00048,83632.0,83631.0,0.0837328]
[1743902601416,0.00128,83632.0,83631.0,0.6952528]
[1743902601611,0.00048,83632.0,83631.0,0.6952528]
[1743902602017,0.00048,83632.0,83631.0,0.7930528]
[1743902602913,0.00048,83632.0,83631.0,0.80964052]
[1743902604922,0.0004,83632.0,83631.0,0.80964052]
[1743902607215,9e-08,83638.0,83637.0,0.0837268]
[1743902607426,9e-08,83638.0,83637.0,0.96690508]
[1743902607925,0.0307,83649.0,83647.0,0.0837168]
[1743902607926,0.0293,83648.0,83647.0,0.0837168]
[1743902608123,0.06190001,83648.0,83647.0,0.10027508]
[1743902608424,0.26190001,83648.0,83647.0,0.10103508]
[1743902608628,0.26190001,83648.0,83647.0,0.34103508]
[1743902608826,0.26190001,83648.0,83647.0,0.3244768]
[1743902609728,0.22990001,83648.0,83647.0,0.3244768]
[1743902612425,0.20060001,83648.0,83647.0,0.3333445]
[1743902612924,0.00060001,83648.0,83647.0,0.3333445]
[1743902614828,0.02990001,83648.0,83647.0,0.3333445]
[1743902618232,0.02990001,83648.0,83647.0,0.0933445]
[1743902618432,0.06010001,83648.0,83647.0,0.0933445]
[1743902619236,0.26010001,83648.0,83647.0,0.0933445]
[1743902619633,0.26010001,83648.0,83647.0,0.3633445]
[1743902620138,0.67419041,83650.0,83649.0,0.0837148]
[1743902620323,0.36049512,83650.0,83649.0,0.3445948]
[1743902622643,0.36049512,83650.0,83649.0,0.3769948]
[1743902623939,9e-08,83656.0,83655.0,0.2822088]
[1743902624237,9e-08,83663.0,83662.0,0.2822018]
[1743902624431,0.00156,83668.0,83667.0,0.0836967]
[1743902624630,0.00048,83668.0,83667.0,0.3147767]
[1743902624834,0.1433326,83671.0,83670.0,0.0836937]
[1743902625039,0.1433326,83671.0,83670.0,0.6955737]
[1743902625744,0.03248,83674.0,83673.0,0.0836907]
[1743902625944,0.03248,83674.0,83673.0,0.3347707]
[1743902628942,8e-05,83674.0,83673.0,0.3347707]
[1743902634447,8e-05,83674.0,83673.0,0.3670707]
[1743902635056,1e-07,83674.0,83673.0,0.3670707]
[1743902635256,0.7828842,83675.0,83674.0,0.0836897]
[1743902635555,0.0245156,83675.0,83674.0,0.3248497]
[1743902635744,0.00011864,83679.0,83678.0,0.0836857]
[1743902635943,0.00011864,83679.0,83678.0,0.3548057]
[1743902636757,0.00011864,83679.0,83678.0,0.4189057]
[1743902639451,0.00011864,83679.0,83678.0,0.3871057]
[1743902639949,0.00011864,83679.0,83678.0,0.1171057]
[1743902640142,0.20011864,83679.0,83678.0,0.1171057]
[1743902641551,0.43380334,83679.0,83678.0,0.00112]
[1743902641754,0.43380334,83679.0,83678.0,0.0848057]
[1743902642347,0.49590334,83679.0,83678.0,0.0848057]
[1743902644662,0.34590334,83679.0,83678.0,0.0848057]
[1743902644966,0.34590334,83679.0,83678.0,0.00112]
[1743902645162,0.49590334,83679.0,83678.0,0.0848057]
[1743902645460,0.49590334,83679.0,83678.0,0.00112]
[1743902646360,0.0836867,83677.0,83676.0,0.29726496]
[1743902646657,0.0836887,83676.0,83675.0,0.0836887]
[1743902646853,0.0836887,83676.0,83674.0,0.0418444]
[1743902646854,0.0836947,83669.0,83668.0,0.29727236]
[1743902647054,0.4444947,83669.0,83668.0,0.29835236]
[1743902647754,0.5056947,83669.0,83668.0,0.29835236]
[1743902648661,0.7056947,83669.0,83668.0,0.29835236]
[1743902650563,0.7056947,83669.0,83668.0,0.0847748]
[1743902651066,0.7566547,83669.0,83668.0,0.0847748]
[1743902651560,0.7566547,83669.0,83668.0,0.00108]
[1743902651763,0.7566547,83669.0,83668.0,0.0847757]
[1743902652557,0.7566547,83669.0,83668.0,0.00108]
[1743902652866,0.7746147,83669.0,83668.0,0.00108]
[1743902653061,0.7746147,83669.0,83662.0,0.21375684]
[1743902653062,0.0837008,83663.0,83662.0,0.32935814]
[1743902653262,0.0837008,83663.0,83662.0,0.24673684]
[1743902653562,0.0837008,83663.0,83662.0,0.33043864]
[1743902653753,0.0837008,83663.0,83662.0,0.03315928]
[1743902653954,0.1452008,83663.0,83662.0,0.11686108]
[1743902655259,0.3452008,83663.0,83662.0,0.11686108]
[1743902658371,0.3961608,83663.0,83662.0,0.14916108]
[1743902658872,0.3452008,83663.0,83662.0,0.14916108]
[1743902659066,0.3668608,83663.0,83662.0,0.14916108]
[1743902659267,0.3668608,83663.0,83662.0,0.17926108]
[1743902663871,0.3159008,83663.0,83662.0,0.17926108]
[1743902664172,0.3346608,83663.0,83662.0,0.17926108]
[1743902664670,0.2837008,83663.0,83662.0,0.17926108]
[1743902664970,0.3346608,83663.0,83662.0,0.17926108]
[1743902665767,0.3647608,83663.0,83662.0,0.17926108]
[1743902667672,0.3647608,83663.0,83662.0,0.14916108]
[1743902669167,0.3647608,83663.0,83662.0,0.17966108]
[1743902669868,0.3647608,83663.0,83662.0,0.14916108]
[1743902671169,0.3647608,83663.0,83662.0,0.17966108]
[1743902673370,0.3346608,83663.0,83662.0,0.17966108]
[1743902674280,0.2837008,83663.0,83662.0,0.17966108]
[1743902674578,0.25096,83663.0,83662.0,0.17966108]
[1743902674762,0.3346608,83663.0,83662.0,0.17966108]
[1743902682576,0.2837008,83663.0,83662.0,0.17966108]
[1743902682877,0.3346608,83663.0,83662.0,0.17966108]
[1743902683372,0.3639608,83663.0,83662.0,0.14916108]
[1743902686779,0.3639608,83663.0,83662.0,0.11686108]
[1743902687376,0.3639608,83663.0,83662.0,0.03315928]
[1743902687880,0.3639608,83663.0,83662.0,0.31898457]
[1743902689275,0.7247608,83663.0,83662.0,0.31898457]
[1743902690782,0.7247608,83663.0,83662.0,0.40268637]
[1743902690983,0.7247608,83663.0,83662.0,0.11686108]
[1743902691573,0.7573608,83663.0,83662.0,0.11686108]
[1743902691771,0.2,83663.0,83662.0,0.38686108]
[1743902692174,0.1002,83663.0,83662.0,0.38686108]
[1743902693684,0.10729832,83664.0,83663.0,0.0837008]
[1743902693987,8e-05,83667.0,83666.0,0.0836977]
[1743902694279,8e-05,83667.0,83666.0,0.3647777]
[1743902694687,8e-05,83667.0,83666.0,0.3954777]
[1743902694884,0.20008,83667.0,83666.0,0.3954777]
[1743902695479,0.20008,83667.0,83666.0,0.4584777]
[1743902698884,0.2,83667.0,83666.0,0.4584777]
[1743902699390,0.05096,83675.0,83674.0,0.0836897]
[1743902699588,0.0121427,83681.0,83678.0,0.0836857]
[1743902699788,0.15837696,83679.0,83678.0,0.0836857]
[1743902699991,0.15837696,83679.0,83678.0,0.0847657]
[1743902700696,0.15837696,83679.0,83678.0,0.1160657]
[1743902700884,0.35837696,83679.0,83678.0,0.1160657]
[1743902702286,0.25107864,83679.0,83678.0,0.1160657]
[1743902704291,0.25107864,83679.0,83678.0,0.13254651]
[1743902706293,0.25107864,83679.0,83678.0,0.36254651]
[1743902706792,0.20011864,83679.0,83678.0,0.36254651]
[1743902707791,0.20011864,83679.0,83678.0,0.3627112]
[1743902709079,0.20011864,83679.0,83678.0,0.57655447]
[1743902709283,0.20011864,83679.0,83678.0,0.57653943]
[1743902709880,0.00011864,83679.0,83678.0,0.57653943]
[1743902713095,0.00011864,83679.0,83678.0,0.36269616]
[1743902717384,0.00011864,83679.0,83678.0,0.72349616]
[1743902721601,0.00011864,83679.0,83678.0,0.75399616]
[1743902723601,0.00011864,83679.0,83678.0,0.39319616]
[1743902724201,0.00011864,83679.0,83678.0,0.16336673]
[1743902724401,0.00011864,83679.0,83678.0,0.42336673]
[1743902724595,0.00011864,83679.0,83678.0,0.16336673]
[1743902724793,0.00011864,83679.0,83678.0,0.13206673]
[1743902725301,0.00011864,83679.0,83678.0,0.16266673]
[1743902725502,0.03291864,83679.0,83678.0,0.40266673]
[1743902726003,0.23291864,83679.0,83678.0,0.40266673]
[1743902726899,0.20011864,83679.0,83678.0,0.60116673]
[1743902727509,0.20011864,83679.0,83678.0,0.40266673]
[1743902727797,0.20011864,83679.0,83678.0,0.36202843]
[1743902727999,0.20011864,83679.0,83678.0,0.39342843]
[1743902728207,0.26391864,83679.0,83678.0,0.39342843]
[1743902728905,0.26391864,83679.0,83678.0,0.40992367]
[1743902731009,0.26391864,83679.0,83678.0,0.37852367]
[1743902731196,0.26391864,83679.0,83678.0,0.14852367]
[1743902731602,0.23091864,83679.0,83678.0,0.18092367]
[1743902733015,0.20011864,83679.0,83678.0,0.42092367]
[1743902733601,0.00011864,83679.0,83678.0,0.42092367]
[1743902736206,0.02692091,83686.0,83678.0,0.33723797]
[1743902736408,0.02692091,83686.0,83685.0,0.0836787]
[1743902736609,0.02692091,83686.0,83685.0,0.37156143]
[1743902737003,0.22692091,83686.0,83685.0,0.37156143]
[1743902737204,0.22692091,83686.0,83685.0,0.43506143]
[1743902737405,0.22692091,83686.0,83685.0,0.16506143]
[1743902737604,0.26012091,83686.0,83685.0,0.16506143]
[1743902737805,0.26012091,83686.0,83685.0,0.14845667]
[1743902739315,0.31152091,83686.0,83685.0,0.14845667]
[1743902746106,0.31152091,83686.0,83685.0,0.14939445]
[1743902747016,0.31152091,83686.0,83685.0,0.34789445]
[1743902747209,0.31152091,83686.0,83685.0,0.14939445]
[1743902749810,0.31152091,83686.0,83685.0,0.14944357]
[1743902751521,0.31152091,83686.0,83685.0,0.1494532]
[1743902754018,0.26012091,83686.0,83685.0,0.1494532]
[1743902754214,0.31132091,83686.0,83685.0,0.1494532]
[1743902754817,0.26012091,83686.0,83685.0,0.1494532]
[1743902755016,0.31132091,83686.0,83685.0,0.1494532]
[1743902762927,0.31132091,83686.0,83685.0,0.13169394]
[1743902763130,0.31132091,83686.0,83685.0,0.14941462]
[1743902764227,0.31132091,83686.0,83685.0,0.14943866]
[1743902765345,0.26012091,83686.0,83685.0,0.14943866]
[1743902765544,0.27808091,83686.0,83685.0,0.21313866]
[1743902765736,0.22692091,83686.0,83685.0,0.21311499]
[1743902765937,0.27804091,83686.0,83685.0,0.21311499]
[1743902767945,0.27804091,83686.0,83685.0,0.2129001]
[1743902768746,0.25112,83686.0,83685.0,0.2129001]
[1743902769453,0.25112,83686.0,83685.0,0.21290068]
[1743902770452,0.25112,83686.0,83685.0,0.56994973]
[1743902770641,0.25112,83686.0,83685.0,0.90950706]
[1743902771243,0.3347977,83686.0,83685.0,0.90950706]
[1743902771443,0.32583063,83686.0,83685.0,0.90950706]
[1743902772355,0.35693063,83686.0,83685.0,0.90950706]
[1743902772654,0.27325293,83686.0,83685.0,0.90950706]
[1743902772857,0.27325293,83686.0,83685.0,0.89301182]
[1743902773158,0.22213293,83686.0,83685.0,0.89301182]
[1743902773347,0.24219293,83686.0,83685.0,0.89301182]
[1743902773651,0.19103293,83686.0,83685.0,0.89301182]
[1743902773853,0.24223293,83686.0,83685.0,0.89301182]
[1743902775253,0.24223293,83686.0,83685.0,0.52065449]
[1743902775450,0.30373293,83686.0,83685.0,0.52065449]
[1743902775751,0.38741063,83686.0,83685.0,0.37567579]
[1743902775949,0.38741063,83686.0,83685.0,0.45935449]
[1743902776655,0.38741063,83686.0,83685.0,0.49265449]
[1743902776848,0.25253293,83686.0,83685.0,0.49230545]
[1743902777048,0.38741063,83686.0,83685.0,0.52240545]
[1743902777357,0.38741063,83686.0,83685.0,0.55550545]
[1743902777856,0.35731063,83686.0,83685.0,0.55550545]
[1743902779861,0.35731063,83686.0,83685.0,0.48420593]
[1743902782257,0.35731063,83686.0,83685.0,0.45097112]
[1743902783060,0.30611063,83686.0,83685.0,0.45097112]
[1743902783255,0.35723063,83686.0,83685.0,0.45097112]
[1743902783460,0.35723063,83686.0,83685.0,0.16522159]
[1743902785954,0.35723063,83686.0,83685.0,0.16520363]
[1743902786959,0.35719063,83686.0,83685.0,0.16520363]
[1743902787350,0.35719063,83686.0,83685.0,0.16523851]
[1743902794167,0.30611063,83686.0,83685.0,0.16523851]
[1743902794367,0.35711063,83686.0,83685.0,0.16523851]
[1743902796655,0.38921063,83686.0,83685.0,0.16523851]
[1743902796861,0.38921063,83686.0,83685.0,0.01815981]
[1743902797168,0.0836797,83684.0,83683.0,0.28574953]
[1743902797359,0.0836797,83684.0,83683.0,0.30378498]
[1743902798159,0.27471063,83686.0,83685.0,0.0836787]
[1743902798367,0.27471063,83686.0,83685.0,0.37171415]
[1743902798567,0.19103293,83686.0,83685.0,0.10171415]
[1743902798781,0.19103293,83686.0,83685.0,0.18166747]
[1743902798957,0.27471063,83686.0,83685.0,0.18166747]
[1743902799569,0.19103293,83686.0,83685.0,0.18166747]
[1743902799970,0.24471293,83686.0,83685.0,0.18166747]
[1743902800570,0.24471293,83686.0,83685.0,0.18235236]
[1743902800872,0.24467293,83686.0,83685.0,0.18235236]
[1743902801056,0.19103293,83686.0,83685.0,0.18235236]
[1743902806375,0.19103293,83686.0,83685.0,0.16472896]
[1743902806564,0.19103293,83686.0,83685.0,0.18238641]
[1743902811181,0.19103293,83686.0,83685.0,0.42238641]
[1743902811973,0.19103293,83686.0,83685.0,0.45238641]
[1743902812375,0.19103293,83686.0,83685.0,0.42238641]
[1743902815373,0.19103293,83686.0,83685.0,0.18238641]
[1743902815774,0.19103293,83686.0,83685.0,0.42238641]
[1743902815968,0.19103293,83686.0,83685.0,0.45238641]
[1743902816769,0.19103293,83686.0,83685.0,0.18238641]
[1743902818476,0.19103293,83686.0,83685.0,0.43238641]
[1743902818878,0.19103293,83686.0,83685.0,0.18238641]
[1743902819381,0.19103293,83686.0,83685.0,0.41238641]
[1743902820068,0.12203143,83686.0,83685.0,0.82978641]
[1743902820277,8e-05,83687.0,83686.0,0.0836777]
[1743902820278,3e-08,83687.0,83686.0,0.0836777]
[1743902820577,1.40132113,83700.0,83699.0,0.0836648]
[1743902820776,1.40132113,83700.0,83699.0,0.34799251]
[1743902820966,1.40132113,83700.0,83699.0,0.11907251]
[1743902821167,1.40132113,83700.0,83699.0,0.11799251]
[1743902821469,1.40132113,83700.0,83699.0,0.18239251]
[1743902821982,1.60132113,83700.0,83699.0,0.38089251]
[1743902822168,1.60132113,83700.0,83699.0,0.18347251]